[Event "EYCC Open U10 2021"]
[Site "Tornelo"]
[Date "2021.10.15"]
[Round "6.4"]
[White "Kozlov, Kirill Dm."]
[Black "Diachek, Andriy"]
[Result "1/2-1/2"]
[ECO "C88"]
[WhiteElo "1228"]
[BlackElo "1689"]
[Annotator "NA RC"]
[PlyCount "110"]
[EventDate "2021.10.15"]
[EventType "swiss"]
[EventCountry "NET"]
[SourceTitle "playchess.com"]
[Source "ChessBase"]
[SourceQuality "1"]
[TimeControl "5400+30"]

1. e4 {[%emt 0:00:30]} e5 {[%emt 0:00:44]} 2. Nf3 {[%emt 0:00:04]} Nc6 {[%emt 0:00:07]} 3. Bb5 {[%emt 0:00:05]} a6 {[%emt 0:00:05]} 4. Ba4 {[%emt 0:00:03]} Nf6 {[%emt 0:00:03]} 5. O-O {[%emt 0:00:25]} Be7 {[%emt 0:00:38]} 6. d3 {[%emt 0:00:45]} b5 {[%emt 0:00:25]} 7. Bb3 {[%emt 0:00:06]} O-O {[%emt 0:00:20]} 8. c3 {[%emt 0:01:03]} d6 {[%emt 0:00:22]} 9. Re1 {[%emt 0:00:41]} Na5 {[%emt 0:00:37]} 10. Bc2 {[%emt 0:00:09]} c5 {[%emt 0:00:13]} 11. a4 {[%emt 0:03:11]} Bb7 {[%emt 0:03:19]} 12. Nbd2 {[%emt 0:01:02]} Re8 {[%emt 0:03:15]} 13. Nf1 {[%emt 0:01:56]} Bf8 {[%emt 0:01:32]} 14. Ng3 {[%emt 0:01:50]} g6 {[%emt 0:00:49]} 15. h3 {[%emt 0:01:29]} Bg7 {[%emt 0:00:49]} 16. Bg5 {[%emt 0:06:30]} Nc6 {[%emt 0:08:48]} 17. d4 {[%emt 0:06:54]} cxd4 {[%emt 0:07:36]} 18. cxd4 {[%emt 0:00:28]} Nxd4 {[%emt 0:02:05]} 19. Nxd4 {[%emt 0:00:14]} exd4 {[%emt 0:00:06]} 20. Qxd4 {[%emt 0:00:09]} h6 {[%emt 0:04:02]} 21. Bxf6 {[%emt 0:01:57]} Bxf6 {[%emt 0:08:36]} 22. Qb4 {[%emt 0:11:45]} Qb6 {[%emt 0:11:49]} 23. Qb3 {[%emt 0:13:57]} Bd4 {[%emt 0:15:44]} 24. Rf1 {[%emt 0:00:51]} Rad8 {[%emt 0:04:49]} 25. Ne2 {[%emt 0:12:02]} Bg7 {[%emt 0:04:52]} 26. Ng3 {[%emt 0:04:37]} d5 {[%emt 0:02:11]} 27. axb5 {[%emt 0:06:06]} axb5 {[%emt 0:00:22]} 28. Bd3 {[%emt 0:00:23]} dxe4 {[%emt 0:06:46]} 29. Qxb5 {[%emt 0:00:11]} Qc7 {[%emt 0:02:20]} 30. Bc4 {[%emt 0:01:34]} Bc6 {[%emt 0:08:27]} 31. Qb3 {[%emt 0:09:19]} Rb8 {[%emt 0:01:18]} 32. Qe3 {[%emt 0:00:10]} Rxb2 {[%emt 0:01:01]} 33. Ra7 {[%emt 0:00:12]} Rb7 {[%emt 0:00:18]} 34. Rxb7 {[%emt 0:03:56]} Bxb7 {[%emt 0:00:16]} 35. Rc1 {[%emt 0:00:36]} Qe7 {[%emt 0:00:30]} 36. Bb5 {[%emt 0:01:23]} Rd8 {[%emt 0:00:16]} 37. Qb6 {[%emt 0:00:50]} Bd4 {[%emt 0:02:34]} 38. Rc7 {[%emt 0:04:22]} Bxb6 {[%emt 0:00:35]} 39. Rxe7 {[%emt 0:00:07]} Bd5 {[%emt 0:00:36]} 40. Nxe4 {[%emt 0:00:18]} Bxe4 {[%emt 0:00:06]} 41. Rxe4 {[%emt 0:00:05]} Rd1+ {[%emt 0:00:06]} 42. Bf1 {[%emt 0:00:03]} Kg7 {[%emt 0:00:11]} 43. g3 {[%emt 0:00:31]} h5 {[%emt 0:00:20]} 44. Kg2 {[%emt 0:00:20]} Rd2 {[%emt 0:00:13]} 45. Re2 {[%emt 0:00:10]} Rxe2 {[%emt 0:00:03]} 46. Bxe2 {[%emt 0:00:03]} Kh6 {[%emt 0:00:04]} 47. Bc4 {[%emt 0:00:13]} f5 {[%emt 0:00:11]} 48. Bf7 {[%emt 0:00:36]} Kg7 {[%emt 0:00:09]} 49. Bd5 {[%emt 0:00:07]} Kf6 {[%emt 0:00:03]} 50. f4 {[%emt 0:00:06]} g5 {[%emt 0:00:08]} 51. fxg5+ {[%emt 0:00:26]} Kxg5 {[%emt 0:00:04]} 52. Be6 {[%emt 0:00:05]} Bc7 {[%emt 0:00:24]} 53. Bxf5 {[%emt 0:00:05]} Kxf5 {[%emt 0:00:04]} 54. g4+ {[%emt 0:00:03]} hxg4 {[%emt 0:00:02]} 55. hxg4+ {[%emt 0:00:04]} Kxg4 {[%emt 0:00:03]} 1/2-1/2

[Event "EYCC Open U10 2021"]
[Site "Tornelo"]
[Date "2021.10.15"]
[Round "6.5"]
[White "Oikonomopoulos, Filippos"]
[Black "Karimli, Yusif"]
[Result "1-0"]
[ECO "D35"]
[WhiteElo "1650"]
[BlackElo "1571"]
[Annotator "NA RC"]
[PlyCount "75"]
[EventDate "2021.10.15"]
[EventType "swiss"]
[EventCountry "NET"]
[SourceTitle "playchess.com"]
[Source "ChessBase"]
[SourceQuality "1"]
[TimeControl "5400+30"]

1. d4 {[%emt 0:00:30]} d5 {[%emt 0:00:34]} 2. c4 {[%emt 0:01:46]} e6 {[%emt 0:00:04]} 3. Nc3 {[%emt 0:00:05]} Nf6 {[%emt 0:00:12]} 4. cxd5 {[%emt 0:00:04]} exd5 {[%emt 0:00:03]} 5. Bg5 {[%emt 0:00:06]} Be7 {[%emt 0:00:13]} 6. e3 {[%emt 0:00:17]} O-O {[%emt 0:00:07]} 7. Bd3 {[%emt 0:00:09]} c6 {[%emt 0:00:06]} 8. Nge2 {[%emt 0:00:12]} Be6 {[%emt 0:00:16]} 9. Nf4 {[%emt 0:00:23]} Nbd7 {[%emt 0:00:23]} 10. O-O {[%emt 0:00:25]} Rc8 {[%emt 0:00:25]} 11. Rc1 {[%emt 0:00:46]} c5 {[%emt 0:00:18]} 12. Bb1 {[%emt 0:01:25]} Re8 {[%emt 0:01:07]} 13. Qd3 {[%emt 0:02:04]} Nf8 {[%emt 0:00:26]} 14. dxc5 {[%emt 0:03:13]} Rxc5 {[%emt 0:02:15]} 15. Rfd1 {[%emt 0:01:21]} Qd6 {[%emt 0:07:32]} 16. Bxf6 {[%emt 0:04:46]} Bxf6 {[%emt 0:00:09]} 17. Ne4 {[%emt 0:00:40]} Qb6 {[%emt 0:04:20]} 18. Nxc5 {[%emt 0:00:16]} Rd8 {[%emt 0:00:06]} 19. Qb3 {[%emt 0:02:02]} Qxb3 {[%emt 0:00:38]} 20. Nxb3 {[%emt 0:00:30]} Bxb2 {[%emt 0:00:21]} 21. Rc7 {[%emt 0:00:48]} Rb8 {[%emt 0:04:24]} 22. Nxd5 {[%emt 0:00:30]} Be5 {[%emt 0:00:08]} 23. Rc5 {[%emt 0:02:06]} Kh8 {[%emt 0:01:37]} 24. Nc7 {[%emt 0:01:12]} Bf6 {[%emt 0:00:17]} 25. Nxe6 {[%emt 0:00:41]} Nxe6 {[%emt 0:00:04]} 26. Rc4 {[%emt 0:00:07]} g6 {[%emt 0:00:07]} 27. Nc5 {[%emt 0:00:22]} Rc8 {[%emt 0:00:11]} 28. Rdc1 {[%emt 0:00:06]} Re8 {[%emt 0:00:21]} 29. Nxe6 {[%emt 0:00:22]} Rxe6 {[%emt 0:00:03]} 30. Rc7 {[%emt 0:00:07]} Kg7 {[%emt 0:00:03]} 31. a4 {[%emt 0:01:11]} Rb6 {[%emt 0:00:07]} 32. Ba2 {[%emt 0:00:09]} Be5 {[%emt 0:00:20]} 33. Rxf7+ {[%emt 0:00:08]} Kh6 {[%emt 0:00:04]} 34. f4 {[%emt 0:00:29]} Bd6 {[%emt 0:00:10]} 35. g4 {[%emt 0:01:14]} Rb2 {[%emt 0:00:32]} 36. h3 {[%emt 0:00:58]} g5 {[%emt 0:03:44]} 37. Rf6+ {[%emt 0:00:13]} Kg7 {[%emt 0:00:02]} 38. Rxd6 {[%emt 0:00:04]} 1-0

[Event "EYCC Open U10 2021"]
[Site "Tornelo"]
[Date "2021.10.15"]
[Round "6.6"]
[White "Demchenko, Maksim Dm"]
[Black "Surikov, Alexey"]
[Result "1/2-1/2"]
[ECO "B36"]
[WhiteElo "1615"]
[BlackElo "1548"]
[Annotator "NA RC"]
[PlyCount "76"]
[EventDate "2021.10.15"]
[EventType "swiss"]
[EventCountry "NET"]
[SourceTitle "playchess.com"]
[Source "ChessBase"]
[SourceQuality "1"]
[TimeControl "5400+30"]

1. e4 {[%emt 0:00:30]} c5 {[%emt 0:00:47]} 2. Nf3 {[%emt 0:00:05]} g6 {[%emt 0:01:40]} 3. d4 {[%emt 0:00:05]} cxd4 {[%emt 0:00:28]} 4. Nxd4 {[%emt 0:00:03]} Nc6 {[%emt 0:00:08]} 5. c4 {[%emt 0:00:05]} Nf6 {[%emt 0:00:36]} 6. Nc3 {[%emt 0:00:05]} Nxd4 {[%emt 0:00:07]} 7. Qxd4 {[%emt 0:00:03]} d6 {[%emt 0:00:03]} 8. Be3 {[%emt 0:00:36]} Bg7 {[%emt 0:00:41]} 9. f3 {[%emt 0:13:01]} O-O {[%emt 0:00:26]} 10. Qd2 {[%emt 0:00:04]} a5 {[%emt 0:12:41]} 11. Be2 {[%emt 0:00:38]} a4 {[%emt 0:00:52]} 12. O-O {[%emt 0:00:12]} Qa5 {[%emt 0:01:10]} 13. Rac1 {[%emt 0:14:37]} Be6 {[%emt 0:11:49]} 14. Rfd1 {[%emt 0:00:39]} Rfc8 {[%emt 0:17:16]} 15. Nb5 {[%emt 0:04:46]} Qxd2 {[%emt 0:02:46]} 16. Rxd2 {[%emt 0:01:30]} d5 {[%emt 0:00:44]} 17. e5 {[%emt 0:06:57]} Ne8 {[%emt 0:13:24]} 18. f4 {[%emt 0:00:32]} dxc4 {[%emt 0:01:00]} 19. Na7 {[%emt 0:13:57]} Rd8 {[%emt 0:04:14]} 20. Rxd8 {[%emt 0:00:31]} Rxd8 {[%emt 0:00:05]} 21. Bxc4 {[%emt 0:00:18]} Bf5 {[%emt 0:01:48]} 22. Nb5 {[%emt 0:08:24]} Kf8 {[%emt 0:02:47]} 23. Nd4 {[%emt 0:10:09]} Be4 {[%emt 0:00:27]} 24. g3 {[%emt 0:04:41]} Bd5 {[%emt 0:04:32]} 25. Bxd5 {[%emt 0:00:43]} Rxd5 {[%emt 0:00:12]} 26. Rc8 {[%emt 0:06:24]} Bh6 {[%emt 0:04:15]} 27. Rb8 {[%emt 0:02:02]} Rxe5 {[%emt 0:00:35]} 28. Kf2 {[%emt 0:02:05]} Rh5 {[%emt 0:01:12]} 29. h4 {[%emt 0:01:21]} e5 {[%emt 0:00:32]} 30. fxe5 {[%emt 0:05:03]} Bxe3+ {[%emt 0:00:19]} 31. Kxe3 {[%emt 0:00:01]} Rxe5+ {[%emt 0:00:07]} 32. Kd3 {[%emt 0:00:04]} Re7 {[%emt 0:00:13]} 33. Ra8 {[%emt 0:00:10]} Kg7 {[%emt 0:04:42]} 34. Rxa4 {[%emt 0:00:04]} Nf6 {[%emt 0:00:12]} 35. Rc4 {[%emt 0:03:03]} Ne4 {[%emt 0:00:24]} 36. Ne6+ {[%emt 0:00:22]} Rxe6 {[%emt 0:00:15]} 37. Rxe4 {[%emt 0:00:03]} Rd6+ {[%emt 0:00:06]} 38. Rd4 {[%emt 0:00:10]} Rf6 {[%emt 0:00:09]} 1/2-1/2

[Event "EYCC Open U10 2021"]
[Site "Tornelo"]
[Date "2021.10.15"]
[Round "6.8"]
[White "Ochedzan, Filip"]
[Black "Kviriashvili, Andria"]
[Result "1-0"]
[ECO "C11"]
[WhiteElo "1696"]
[BlackElo "1406"]
[Annotator "NA RC"]
[PlyCount "131"]
[EventDate "2021.10.15"]
[EventType "swiss"]
[EventCountry "NET"]
[SourceTitle "playchess.com"]
[Source "ChessBase"]
[SourceQuality "1"]
[TimeControl "5400+30"]

1. e4 {[%emt 0:00:30]} e6 {[%emt 0:00:35]} 2. d4 {[%emt 0:00:06]} d5 {[%emt 0:00:05]} 3. Nc3 {[%emt 0:00:11]} Nf6 {[%emt 0:00:06]} 4. e5 {[%emt 0:00:05]} Nfd7 {[%emt 0:00:03]} 5. f4 {[%emt 0:00:06]} c5 {[%emt 0:00:06]} 6. Nf3 {[%emt 0:00:06]} Nc6 {[%emt 0:00:06]} 7. Be3 {[%emt 0:00:05]} a6 {[%emt 0:00:07]} 8. a3 {[%emt 0:00:45]} b5 {[%emt 0:00:36]} 9. dxc5 {[%emt 0:00:45]} Bxc5 {[%emt 0:00:08]} 10. Bxc5 {[%emt 0:00:06]} Nxc5 {[%emt 0:00:02]} 11. b4 {[%emt 0:00:06]} Nd7 {[%emt 0:00:06]} 12. Bd3 {[%emt 0:00:17]} Qb6 {[%emt 0:00:33]} 13. Qd2 {[%emt 0:02:13]} Bb7 {[%emt 0:05:15]} 14. Qf2 {[%emt 0:03:17]} Rc8 {[%emt 0:02:44]} 15. Qxb6 {[%emt 0:04:22]} Nxb6 {[%emt 0:00:07]} 16. Ne2 {[%emt 0:00:21]} Nc4 {[%emt 0:01:03]} 17. Ned4 {[%emt 0:04:37]} Nxd4 {[%emt 0:01:09]} 18. Nxd4 {[%emt 0:00:06]} Ke7 {[%emt 0:00:17]} 19. O-O {[%emt 0:07:23]} g6 {[%emt 0:02:45]} 20. Rfb1 {[%emt 0:08:25]} Nb6 {[%emt 0:01:09]} 21. h3 {[%emt 0:04:35]} h5 {[%emt 0:00:45]} 22. Kf2 {[%emt 0:03:27]} Na4 {[%emt 0:01:50]} 23. Ke3 {[%emt 0:01:55]} Rc7 {[%emt 0:06:28]} 24. g3 {[%emt 0:03:52]} Rg8 {[%emt 0:03:38]} 25. Rb3 {[%emt 0:06:12]} f6 {[%emt 0:00:56]} 26. exf6+ {[%emt 0:04:05]} Kxf6 {[%emt 0:00:09]} 27. Nf3 {[%emt 0:01:33]} Nb6 {[%emt 0:01:43]} 28. Re1 {[%emt 0:01:51]} Rgc8 {[%emt 0:07:32]} 29. Kf2 {[%emt 0:05:25]} Nd7 {[%emt 0:04:57]} 30. Rbb1 {[%emt 0:05:41]} Rc3 {[%emt 0:03:50]} 31. Ra1 {[%emt 0:00:22]} Nf8 {[%emt 0:02:05]} 32. Re3 {[%emt 0:01:51]} Bc6 {[%emt 0:01:42]} 33. Nd4 {[%emt 0:02:51]} Be8 {[%emt 0:04:58]} 34. g4 {[%emt 0:02:38]} R8c7 {[%emt 0:04:06]} 35. g5+ {[%emt 0:03:54]} Kf7 {[%emt 0:00:29]} 36. h4 {[%emt 0:01:08]} Rc8 {[%emt 0:01:39]} 37. Nb3 {[%emt 0:02:30]} R3c6 {[%emt 0:05:28]} 38. Rae1 {[%emt 0:00:40]} Rd6 {[%emt 0:01:12]} 39. Nd4 {[%emt 0:00:55]} Rb6 {[%emt 0:02:51]} 40. f5 {[%emt 0:05:54]} gxf5 {[%emt 0:01:14]} 41. Bxf5 {[%emt 0:00:31]} Bd7 {[%emt 0:00:56]} 42. Bd3 {[%emt 0:00:20]} Re8 {[%emt 0:02:24]} 43. Nf3 {[%emt 0:01:35]} Kg7 {[%emt 0:00:48]} 44. Ne5 {[%emt 0:00:33]} Re7 {[%emt 0:01:07]} 45. Rf3 {[%emt 0:01:36]} Be8 {[%emt 0:00:23]} 46. Rf6 {[%emt 0:04:11]} Nd7 {[%emt 0:02:51]} 47. Nxd7 {[%emt 0:00:07]} Bxd7 {[%emt 0:00:11]} 48. Rh6 {[%emt 0:01:18]} Be8 {[%emt 0:02:00]} 49. Ke3 {[%emt 0:01:37]} Kg8 {[%emt 0:02:39]} 50. Rf1 {[%emt 0:02:05]} Rf7 {[%emt 0:01:07]} 51. Rxf7 {[%emt 0:00:59]} Bxf7 {[%emt 0:00:44]} 52. g6 {[%emt 0:00:20]} Be8 {[%emt 0:00:13]} 53. Rxh5 {[%emt 0:00:12]} Rb7 {[%emt 0:00:18]} 54. Re5 {[%emt 0:01:09]} Re7 {[%emt 0:00:14]} 55. h5 {[%emt 0:00:18]} Kg7 {[%emt 0:00:11]} 56. Kd4 {[%emt 0:00:40]} Kf6 {[%emt 0:00:07]} 57. Re1 {[%emt 0:00:32]} Rc7 {[%emt 0:01:05]} 58. Rf1+ {[%emt 0:01:03]} Kg7 {[%emt 0:00:08]} 59. Ke5 {[%emt 0:00:19]} Kh6 {[%emt 0:01:47]} 60. Rf8 {[%emt 0:00:20]} Bxg6 {[%emt 0:00:36]} 61. hxg6 {[%emt 0:00:18]} Kg7 {[%emt 0:00:05]} 62. Ra8 {[%emt 0:00:24]} Rc6 {[%emt 0:00:06]} 63. Ra7+ {[%emt 0:00:06]} Kg8 {[%emt 0:00:04]} 64. Re7 {[%emt 0:00:17]} Rc3 {[%emt 0:00:08]} 65. Kf6 {[%emt 0:00:33]} Rc8 {[%emt 0:00:13]} 66. Kxe6 {[%emt 0:00:15]} 1-0

[Event "EYCC Open U10 2021"]
[Site "Tornelo"]
[Date "2021.10.15"]
[Round "6.9"]
[White "Dumbelovic, Novak"]
[Black "Williams, Oscar"]
[Result "1-0"]
[ECO "B67"]
[WhiteElo "1688"]
[BlackElo "1405"]
[Annotator "NA RC"]
[PlyCount "87"]
[EventDate "2021.10.15"]
[EventType "swiss"]
[EventCountry "NET"]
[SourceTitle "playchess.com"]
[Source "ChessBase"]
[SourceQuality "1"]
[TimeControl "5400+30"]

1. e4 {[%emt 0:00:30]} c5 {[%emt 0:00:36]} 2. Nf3 {[%emt 0:01:06]} d6 {[%emt 0:00:05]} 3. d4 {[%emt 0:01:02]} cxd4 {[%emt 0:00:05]} 4. Nxd4 {[%emt 0:00:48]} Nf6 {[%emt 0:00:06]} 5. Nc3 {[%emt 0:00:52]} Nc6 {[%emt 0:00:34]} 6. Bg5 {[%emt 0:03:28]} e6 {[%emt 0:00:06]} 7. Qd2 {[%emt 0:05:36]} a6 {[%emt 0:00:08]} 8. O-O-O {[%emt 0:05:05]} Bd7 {[%emt 0:01:06]} 9. f4 {[%emt 0:06:06]} Qc7 {[%emt 0:03:13]} 10. Nxc6 {[%emt 0:05:28]} Bxc6 {[%emt 0:03:33]} 11. Bd3 {[%emt 0:05:32]} b5 {[%emt 0:02:54]} 12. Rhe1 {[%emt 0:06:01]} Rc8 {[%emt 0:03:14]} 13. Bxf6 {[%emt 0:04:34]} gxf6 {[%emt 0:00:13]} 14. Nd5 {[%emt 0:05:40]} Qd8 {[%emt 0:02:41]} 15. g4 {[%emt 0:05:18]} Bg7 {[%emt 0:08:02]} 16. h4 {[%emt 0:05:27]} Kf8 {[%emt 0:02:53]} 17. Ne3 {[%emt 0:05:36]} h5 {[%emt 0:05:11]} 18. Rg1 {[%emt 0:05:28]} hxg4 {[%emt 0:01:21]} 19. Rxg4 {[%emt 0:01:18]} f5 {[%emt 0:12:15]} 20. Rxg7 {[%emt 0:04:47]} Kxg7 {[%emt 0:00:31]} 21. exf5 {[%emt 0:00:22]} e5 {[%emt 0:01:37]} 22. fxe5 {[%emt 0:00:45]} dxe5 {[%emt 0:00:29]} 23. Qh2 {[%emt 0:00:45]} Qc7 {[%emt 0:05:53]} 24. Rg1+ {[%emt 0:01:10]} Kf8 {[%emt 0:00:27]} 25. Qg3 {[%emt 0:00:57]} f6 {[%emt 0:02:53]} 26. Qf2 {[%emt 0:02:46]} Qa7 {[%emt 0:04:02]} 27. Rg6 {[%emt 0:02:54]} Kf7 {[%emt 0:01:40]} 28. Rxf6+ {[%emt 0:01:04]} Ke8 {[%emt 0:01:00]} 29. Re6+ {[%emt 0:00:22]} Kd7 {[%emt 0:00:36]} 30. Re7+ {[%emt 0:00:11]} Kxe7 {[%emt 0:00:18]} 31. Nd5+ {[%emt 0:00:03]} Bxd5 {[%emt 0:00:05]} 32. Qxa7+ {[%emt 0:00:03]} Kd6 {[%emt 0:02:10]} 33. Qxa6+ {[%emt 0:00:11]} Rc6 {[%emt 0:00:22]} 34. Qxb5 {[%emt 0:00:54]} e4 {[%emt 0:02:14]} 35. Qb4+ {[%emt 0:00:22]} Ke5 {[%emt 0:00:44]} 36. Bb5 {[%emt 0:00:32]} Rc7 {[%emt 0:02:23]} 37. Qa3 {[%emt 0:00:17]} Rxh4 {[%emt 0:01:42]} 38. Qg3+ {[%emt 0:00:31]} Rf4 {[%emt 0:00:32]} 39. Kd2 {[%emt 0:01:28]} Kxf5 {[%emt 0:03:59]} 40. Qh3+ {[%emt 0:00:15]} Kg5 {[%emt 0:00:18]} 41. Be2 {[%emt 0:01:03]} e3+ {[%emt 0:09:31]} 42. Qxe3 {[%emt 0:00:42]} Rd7 {[%emt 0:00:26]} 43. Qg3+ {[%emt 0:00:36]} Kf5 {[%emt 0:00:06]} 44. Qh3+ {[%emt 0:00:06]} 1-0

[Event "EYCC Open U10 2021"]
[Site "Tornelo"]
[Date "2021.10.15"]
[Round "6.10"]
[White "Fester, Harel"]
[Black "Karpenko, Anton"]
[Result "1/2-1/2"]
[ECO "B23"]
[WhiteElo "1480"]
[BlackElo "1634"]
[Annotator "NA RC"]
[PlyCount "171"]
[EventDate "2021.10.15"]
[EventType "swiss"]
[EventCountry "NET"]
[SourceTitle "playchess.com"]
[Source "ChessBase"]
[SourceQuality "1"]
[TimeControl "5400+30"]

1. e4 {[%emt 0:00:30]} c5 {[%emt 0:00:36]} 2. Nc3 {[%emt 0:00:07]} g6 {[%emt 0:00:04]} 3. f4 {[%emt 0:00:10]} Bg7 {[%emt 0:00:03]} 4. Nf3 {[%emt 0:00:07]} Nc6 {[%emt 0:00:03]} 5. Bb5 {[%emt 0:00:26]} Nd4 {[%emt 0:00:05]} 6. Nxd4 {[%emt 0:00:54]} cxd4 {[%emt 0:00:06]} 7. Ne2 {[%emt 0:00:05]} a6 {[%emt 0:00:46]} 8. Bd3 {[%emt 0:00:10]} e6 {[%emt 0:00:48]} 9. O-O {[%emt 0:01:07]} d5 {[%emt 0:00:24]} 10. e5 {[%emt 0:03:15]} Qb6 {[%emt 0:00:49]} 11. Kh1 {[%emt 0:00:51]} Ne7 {[%emt 0:00:30]} 12. c3 {[%emt 0:02:21]} dxc3 {[%emt 0:00:15]} 13. bxc3 {[%emt 0:01:44]} f6 {[%emt 0:00:48]} 14. Rb1 {[%emt 0:02:59]} Qc7 {[%emt 0:00:32]} 15. exf6 {[%emt 0:01:33]} Bxf6 {[%emt 0:00:05]} 16. Bc2 {[%emt 0:01:54]} O-O {[%emt 0:00:17]} 17. d4 {[%emt 0:00:34]} Bd7 {[%emt 0:00:48]} 18. Ba3 {[%emt 0:02:10]} Rf7 {[%emt 0:01:38]} 19. Qd2 {[%emt 0:06:00]} Nc6 {[%emt 0:03:22]} 20. Bc5 {[%emt 0:05:29]} Na5 {[%emt 0:03:08]} 21. Bd3 {[%emt 0:03:45]} b5 {[%emt 0:00:24]} 22. Qc2 {[%emt 0:01:06]} Be7 {[%emt 0:03:13]} 23. Bxe7 {[%emt 0:02:42]} Rxe7 {[%emt 0:00:04]} 24. Rf3 {[%emt 0:03:55]} Nc4 {[%emt 0:03:05]} 25. Rb3 {[%emt 0:02:31]} Rf8 {[%emt 0:01:52]} 26. Rg3 {[%emt 0:02:45]} Bc8 {[%emt 0:01:04]} 27. h4 {[%emt 0:02:53]} Rg7 {[%emt 0:00:36]} 28. h5 {[%emt 0:03:05]} gxh5 {[%emt 0:00:08]} 29. Bxh7+ {[%emt 0:00:17]} Kh8 {[%emt 0:00:16]} 30. Bg6 {[%emt 0:00:33]} Rf6 {[%emt 0:00:59]} 31. Rg5 {[%emt 0:01:19]} h4 {[%emt 0:00:37]} 32. Qd3 {[%emt 0:08:29]} Qe7 {[%emt 0:01:00]} 33. Rg4 {[%emt 0:02:50]} Kg8 {[%emt 0:01:53]} 34. Rb1 {[%emt 0:04:06]} Bd7 {[%emt 0:00:33]} 35. Re1 {[%emt 0:03:01]} Be8 {[%emt 0:00:46]} 36. f5 {[%emt 0:02:14]} exf5 {[%emt 0:03:30]} 37. Bxf5 {[%emt 0:00:11]} Rxg4 {[%emt 0:00:17]} 38. Bxg4 {[%emt 0:00:05]} Bg6 {[%emt 0:00:08]} 39. Qh3 {[%emt 0:03:07]} Be4 {[%emt 0:00:57]} 40. Bf3 {[%emt 0:02:58]} Bxf3 {[%emt 0:00:34]} 41. gxf3 {[%emt 0:00:06]} Rg6 {[%emt 0:00:07]} 42. Qf5 {[%emt 0:00:40]} Rg3 {[%emt 0:01:06]} 43. Qxd5+ {[%emt 0:00:43]} Kg7 {[%emt 0:00:08]} 44. Qe4 {[%emt 0:01:07]} Qxe4 {[%emt 0:01:29]} 45. fxe4 {[%emt 0:00:05]} Re3 {[%emt 0:00:21]} 46. e5 {[%emt 0:01:09]} Nd2 {[%emt 0:01:51]} 47. Rg1+ {[%emt 0:01:33]} Kf7 {[%emt 0:00:10]} 48. Nf4 {[%emt 0:01:50]} Re4 {[%emt 0:02:37]} 49. Rg4 {[%emt 0:03:48]} Nb1 {[%emt 0:02:36]} 50. e6+ {[%emt 0:05:02]} Rxe6 {[%emt 0:00:07]} 51. Nxe6 {[%emt 0:00:05]} Kxe6 {[%emt 0:00:04]} 52. Rxh4 {[%emt 0:00:14]} Nxc3 {[%emt 0:00:06]} 53. Kg2 {[%emt 0:01:57]} Kd5 {[%emt 0:00:44]} 54. Kf3 {[%emt 0:02:07]} Nxa2 {[%emt 0:01:09]} 55. Ke3 {[%emt 0:00:22]} Nb4 {[%emt 0:00:07]} 56. Rh5+ {[%emt 0:00:19]} Kc6 {[%emt 0:01:56]} 57. Ke4 {[%emt 0:00:22]} a5 {[%emt 0:00:25]} 58. Rh6+ {[%emt 0:00:17]} Kc7 {[%emt 0:00:39]} 59. Ke5 {[%emt 0:01:15]} a4 {[%emt 0:00:13]} 60. Rh3 {[%emt 0:01:46]} Nc6+ {[%emt 0:00:59]} 61. Kd5 {[%emt 0:00:31]} Na5 {[%emt 0:05:21]} 62. Rc3+ {[%emt 0:01:47]} Kb6 {[%emt 0:01:31]} 63. Ke6 {[%emt 0:00:55]} b4 {[%emt 0:00:19]} 64. Rc1 {[%emt 0:03:41]} b3 {[%emt 0:00:13]} 65. d5 {[%emt 0:01:25]} b2 {[%emt 0:00:42]} 66. Rb1 {[%emt 0:00:13]} a3 {[%emt 0:00:05]} 67. d6 {[%emt 0:00:05]} Nb7 {[%emt 0:00:18]} 68. Kd5 {[%emt 0:00:34]} Kb5 {[%emt 0:00:06]} 69. d7 {[%emt 0:00:21]} Nd8 {[%emt 0:00:54]} 70. Kd6 {[%emt 0:00:15]} Kb4 {[%emt 0:00:55]} 71. Kc7 {[%emt 0:00:08]} Nf7 {[%emt 0:00:28]} 72. Rf1 {[%emt 0:00:07]} a2 {[%emt 0:01:04]} 73. Rxf7 {[%emt 0:00:21]} a1=Q {[%emt 0:00:08]} 74. d8=Q {[%emt 0:02:30]} Qa7+ {[%emt 0:01:06]} 75. Kd6 {[%emt 0:00:51]} Qxf7 {[%emt 0:00:08]} 76. Qb6+ {[%emt 0:00:06]} Kc3 {[%emt 0:00:57]} 77. Qe3+ {[%emt 0:00:19]} Kc2 {[%emt 0:00:17]} 78. Qe2+ {[%emt 0:00:12]} Kc3 {[%emt 0:00:23]} 79. Qe3+ {[%emt 0:00:11]} Kb4 {[%emt 0:00:10]} 80. Qb6+ {[%emt 0:00:07]} Ka3 {[%emt 0:00:11]} 81. Qa5+ {[%emt 0:00:26]} Kb3 {[%emt 0:00:07]} 82. Qb6+ {[%emt 0:00:34]} Ka2 {[%emt 0:00:56]} 83. Qa5+ {[%emt 0:00:17]} Kb1 {[%emt 0:00:13]} 84. Qe1+ {[%emt 0:00:17]} Kc2 {[%emt 0:00:08]} 85. Qe2+ {[%emt 0:00:11]} Kc3 {[%emt 0:00:04]} 86. Qe3+ {[%emt 0:00:07]} 1/2-1/2